fUST/lending_fUST_20251203
["ID","MTS","AMOUNT","RATE_DAILY","PERIOD"]
[395492454,1764697842781,-500.0,0.00013698,2]
[395492456,1764697842790,-500.0,0.00013698,2]
[395492457,1764697842799,-663.85,0.00013698,2]
[395492460,1764697842809,-941.21,0.00013698,2]
[395492461,1764697842818,-500.0,0.00013698,2]
[395492464,1764697842828,-500.0,0.00013698,2]
[395492466,1764697842838,-500.0,0.00013698,2]
[395492467,1764697842847,-500.0,0.00013698,2]
[395492469,1764697842856,-500.0,0.00013698,2]
[395492471,1764697842866,-500.0,0.00013698,2]
[395492474,1764697842876,-500.0,0.00013698,2]
[395492475,1764697842885,-1218.62,0.00013698,2]
[395492477,1764697842894,-648.62,0.00013698,2]
[395492479,1764697842903,-504.20000549,0.00013698,2]
[395492482,1764697842913,-500.0,0.00013698,2]
[395492483,1764697842922,-500.0,0.00013698,2]
[395492485,1764697842931,-501.91000294,0.00013698,2]
[395492487,1764697842941,-500.0,0.00013698,2]
[395492490,1764697842951,-500.0,0.00013698,2]
[395492492,1764697842960,-1398.27,0.00013698,2]
[395492494,1764697842969,-500.0,0.00013698,2]
[395492496,1764697842978,-1581.71,0.00013698,2]
[395492498,1764697842988,-500.0,0.00013698,2]
[395492500,1764697842997,-500.0,0.00013698,2]
[395492502,1764697843007,-500.0,0.00013698,2]
[395492504,1764697843017,-501.14692165,0.00013698,2]
[395492506,1764697843026,-500.0,0.00013698,2]
[395492510,1764697843035,-569.58,0.00013698,2]
[395492513,1764697843045,-579.24,0.00013698,2]
[395492516,1764697843055,-500.0,0.00013698,2]
[395492517,1764697843064,-1233.58,0.00013698,2]
[395492519,1764697843074,-501.20270258,0.00013698,2]
[395492522,1764697843084,-1092.49,0.00013698,2]
[395492524,1764697843094,-833.74,0.00013698,2]
[395492525,1764697843103,-500.0,0.00013698,2]
[395492528,1764697843113,-500.0,0.00013698,2]
[395492531,1764697843123,-600.98,0.00013698,2]
[395492533,1764697843132,-500.0,0.00013698,2]
[395492535,1764697843141,-500.0,0.00013698,2]
[395492537,1764697843151,-500.0,0.00013698,2]
[395492539,1764697843160,-500.0,0.00013698,2]
[395492541,1764697843169,-500.0,0.00013698,2]
[395492543,1764697843179,-1297.13,0.00013698,2]
[395492545,1764697843189,-500.0,0.00013698,2]
[395492547,1764697843199,-500.0,0.00013698,2]
[395492549,1764697843208,-500.0,0.00013698,2]
[395492551,1764697843217,-500.0,0.00013698,2]
[395492552,1764697843227,-500.0,0.00013698,2]
[395492554,1764697843236,-500.0,0.00013698,2]
[395492556,1764697843246,-500.0,0.00013698,2]
[395492558,1764697843255,-490.16523272,0.00013698,2]
[395492562,1764697843281,-11.19535953,0.00013698,2]
[395492564,1764697843291,-500.0,0.00013698,2]
[395492566,1764697843303,-500.0,0.00013698,2]
[395492568,1764697843312,-999.13,0.00013698,2]
[395492570,1764697843322,-500.0,0.00013698,2]
[395492572,1764697843332,-500.0,0.00013698,2]
[395492575,1764697843342,-500.0,0.00013698,2]
[395492577,1764697843355,-500.0,0.00013698,2]
[395492579,1764697843364,-500.0,0.00013698,2]
[395492581,1764697843373,-500.0,0.00013698,2]
[395492582,1764697843382,-500.0,0.00013698,2]
[395492584,1764697843393,-500.0,0.00013698,2]
[395492586,1764697843402,-500.0,0.00013698,2]
[395492588,1764697843411,-500.0,0.00013698,2]
[395492591,1764697843421,-500.0,0.00013698,2]
[395492593,1764697843433,-500.0,0.00013698,2]
[395492595,1764697843442,-500.0,0.00013698,2]
[395492597,1764697843452,-500.0,0.00013698,2]
[395492599,1764697843462,-500.0,0.00013698,2]
[395492601,1764697843472,-500.0,0.00013698,2]
[395492603,1764697843482,-500.0,0.00013698,2]
[395492605,1764697843491,-500.0,0.00013698,2]
[395492607,1764697843502,-502.08323413,0.00013698,2]
[395492609,1764697843511,-500.0,0.00013698,2]
[395492611,1764697843521,-500.0,0.00013698,2]
[395492613,1764697843531,-688.23,0.00013698,2]
[395492615,1764697843541,-502.5635718,0.00013698,2]
[395492617,1764697843552,-500.0,0.00013698,2]
[395492619,1764697843562,-615.88930574,0.00013698,2]
[395492621,1764697843571,-662.62,0.00013698,2]
[395492623,1764697843580,-743.67,0.00013698,2]
[395492625,1764697843590,-500.0,0.00013698,2]
[395492627,1764697843599,-500.0,0.00013698,2]
[395492629,1764697843608,-1039.58,0.00013698,2]
[395492631,1764697843618,-500.0,0.00013698,2]
[395492633,1764697843627,-502.72172648,0.00013698,2]
[395492635,1764697843636,-500.0,0.00013698,2]
[395492637,1764697843646,-516.21320248,0.00013698,2]
[395492639,1764697843655,-500.0,0.00013698,2]
[395492641,1764697843665,-500.0,0.00013698,2]
[395492643,1764697843674,-500.0,0.00013698,2]
[395492645,1764697843683,-500.0,0.00013698,2]
[395492647,1764697843692,-500.0,0.00013698,2]
[395492649,1764697843702,-500.0,0.00013698,2]
[395492651,1764697843711,-500.25,0.00013698,2]
[395492653,1764697843721,-500.0,0.00013698,2]
[395492655,1764697843730,-500.0,0.00013698,2]
[395492657,1764697843739,-500.0,0.00013698,2]
[395492659,1764697843748,-1314.31,0.00013698,2]
[395492661,1764697843759,-690.65,0.00013698,2]
[395492663,1764697843768,-1209.05,0.00013698,2]
[395492665,1764697843778,-500.0,0.00013698,2]
[395492667,1764697843787,-500.0,0.00013698,2]
[395492669,1764697843798,-500.0,0.00013698,2]
[395492671,1764697843807,-392.05011277,0.00013698,2]
[395492674,1764697843824,-107.94988723,0.00013698,2]
[395492676,1764697843834,-500.0,0.00013698,2]
[395492678,1764697843843,-702.7,0.00013698,2]
[395492680,1764697843852,-1416.16,0.00013698,2]
[395492682,1764697843863,-500.0,0.00013698,2]
[395492684,1764697843872,-501.90118251,0.00013698,2]
[395492686,1764697843883,-619.77,0.00013698,2]
[395492688,1764697843894,-500.0,0.00013698,2]
[395492690,1764697843904,-500.35632043,0.00013698,2]
[395492692,1764697843914,-508.57222666,0.00013698,2]
[395492694,1764697843923,-692.21,0.00013698,2]
[395492696,1764697843933,-500.0,0.00013698,2]
[395492698,1764697843942,-301.0524405,0.00013698,2]
[395492700,1764697843952,-504.4736897,0.00013698,2]
[395492702,1764697843961,-500.0,0.00013698,2]
[395492704,1764697843971,-500.0,0.00013698,2]
[395492706,1764697843980,-938.35,0.00013698,2]
[395492708,1764697843990,-500.0,0.00013698,2]
[395492710,1764697843999,-500.0,0.00013698,2]
[395492712,1764697844009,-1374.01,0.00013698,2]
[395492714,1764697844018,-500.0,0.00013698,2]
[395492715,1764697844027,-515.16155126,0.00013698,2]
[395492717,1764697844038,-500.0,0.00013698,2]
[395492720,1764697844050,-500.0,0.00013698,2]
[395492722,1764697844061,-867.0,0.00013698,2]
[395492724,1764697844070,-152.452947,0.00013698,2]
[395492726,1764697844079,-152.452947,0.00013698,2]
[395492728,1764697844089,-152.452947,0.00013698,2]
[395492730,1764697844099,-152.452947,0.00013698,2]
[395492731,1764697844108,-152.452947,0.00013698,2]
[395492734,1764697844118,-152.452947,0.00013698,2]
[395492735,1764697844128,-152.452947,0.00013698,2]
[395492738,1764697844139,-152.452947,0.00013698,2]
[395492740,1764697844148,-500.0,0.00013698,2]
[395492741,1764697844157,-152.452947,0.00013698,2]
[395492743,1764697844167,-152.452947,0.00013698,2]
[395492745,1764697844176,-152.452947,0.00013698,2]
[395492747,1764697844186,-500.0,0.00013698,2]
[395492749,1764697844195,-152.452947,0.00013698,2]
[395492751,1764697844206,-500.0,0.00013698,2]
[395492753,1764697844216,-152.452947,0.00013698,2]
[395492755,1764697844225,-501.460854,0.00013698,2]
[395492757,1764697844234,-152.452947,0.00013698,2]
[395492759,1764697844243,-152.452947,0.00013698,2]
[395492761,1764697844253,-736.72,0.00013698,2]
[395492763,1764697844263,-152.452947,0.00013698,2]
[395492765,1764697844272,-152.452947,0.00013698,2]
[395492767,1764697844282,-152.452947,0.00013698,2]
[395492769,1764697844292,-152.452947,0.00013698,2]
[395492771,1764697844302,-520.17,0.00013698,2]
[395492773,1764697844311,-152.452947,0.00013698,2]
[395492775,1764697844321,-817.17,0.00013698,2]
[395492777,1764697844331,-1292.32,0.00013698,2]
[395492779,1764697844341,-536.8,0.00013698,2]
[395492781,1764697844355,-500.0,0.00013698,2]
[395492783,1764697844365,-1380.92,0.00013698,2]
[395492785,1764697844374,-500.0,0.00013698,2]
[395492787,1764697844384,-500.0,0.00013698,2]
[395492789,1764697844395,-151.0,0.00013698,2]
[395492791,1764697844404,-500.0,0.00013698,2]
[395492793,1764697844414,-500.0,0.00013698,2]
[395492795,1764697844425,-500.0,0.00013698,2]
[395492797,1764697844434,-588.1431466,0.00013698,2]
[395492807,1764697844524,-678.8668534,0.00013698,2]
[395492809,1764697844534,-500.0,0.00013698,2]
[395492811,1764697844543,-151.0,0.00013698,2]
[395492813,1764697844552,-500.0,0.00013698,2]
[395492815,1764697844562,-500.0,0.00013698,2]
[395492817,1764697844571,-500.0,0.00013698,2]
[395492819,1764697844580,-152.05336779,0.00013698,2]
[395492821,1764697844590,-553.2,0.00013698,2]
[395492823,1764697844598,-631.83500642,0.00013698,2]
[395492825,1764697844608,-500.0,0.00013698,2]
[395492827,1764697844618,-500.0,0.00013698,2]
[395492830,1764697844627,-451.88188932,0.00013698,2]
[395492832,1764697844639,-48.11811068,0.00013698,2]
[395492834,1764697844648,-500.0,0.00013698,2]
[395492854,1764697844835,-1035.42,0.00013698,2]
[395492856,1764697844844,-1509.67,0.00013698,2]
[395492858,1764697844854,-1309.42,0.00013698,2]
[395492859,1764697844863,-670.92,0.00013698,2]
[395492860,1764697844873,-500.0,0.00013698,2]
[395492861,1764697844882,-500.0,0.00013698,2]
[395492862,1764697844892,-1108.44,0.00013698,2]
[395492863,1764697844901,-500.0,0.00013698,2]
[395492864,1764697844911,-500.0,0.00013698,2]
[395492865,1764697844921,-500.0,0.00013698,2]
[395492866,1764697844931,-500.0,0.00013698,2]
[395492867,1764697844940,-500.0,0.00013698,2]
[395492868,1764697844950,-505.73,0.00013698,2]
[395492869,1764697844960,-500.0,0.00013698,2]
[395492870,1764697844970,-500.0,0.00013698,2]
[395492871,1764697844979,-500.0,0.00013698,2]
[395492872,1764697844990,-500.0,0.00013698,2]
[395492873,1764697845000,-500.0,0.00013698,2]
[395492874,1764697845009,-697.96131849,0.00013698,2]
[395492875,1764697845023,-364.21868151,0.00013698,2]
[395492876,1764697845033,-500.0,0.00013698,2]
[395492877,1764697845043,-500.0,0.00013698,2]
[395492878,1764697845054,-500.0,0.00013698,2]
[395492879,1764697845064,-500.0,0.00013698,2]
[395492880,1764697845073,-446.30035724,0.00013698,2]
[395492881,1764697845083,-500.0,0.00013698,2]
[395492882,1764697845093,-500.0,0.00013698,2]
[395492883,1764697845102,-500.0,0.00013698,2]
[395492884,1764697845112,-612.37,0.00013698,2]
[395492885,1764697845121,-500.0,0.00013698,2]
[395492886,1764697845131,-1077.7,0.00013698,2]
[395492888,1764697845140,-500.0,0.00013698,2]
[395492890,1764697845149,-502.91046319,0.00013698,2]
[395492892,1764697845161,-500.0,0.00013698,2]
[395492894,1764697845171,-500.0,0.00013698,2]
[395492896,1764697845180,-500.0,0.00013698,2]
[395492898,1764697845190,-501.33609604,0.00013698,2]
[395492900,1764697845200,-500.0,0.00013698,2]
[395492902,1764697845210,-694.0,0.00013698,2]
[395492904,1764697845220,-1021.56,0.00013698,2]
[395492906,1764697845229,-500.0,0.00013698,2]
[395492908,1764697845239,-500.0,0.00013698,2]
[395492910,1764697845249,-2263.16,0.00013698,2]
[395492912,1764697845260,-1288.32,0.00013698,2]
[395492914,1764697845269,-500.0,0.00013698,2]
[395492916,1764697845279,-500.0,0.00013698,2]
[395492918,1764697845288,-500.0,0.00013698,2]
[395492920,1764697845299,-1794.93,0.00013698,2]
[395492922,1764697845308,-500.0,0.00013698,2]
[395492924,1764697845318,-500.0,0.00013698,2]
[395492926,1764697845328,-1944.03,0.00013698,2]
[395492928,1764697845337,-500.0,0.00013698,2]
[395492930,1764697845348,-500.0,0.00013698,2]
[395492932,1764697845362,-608.26,0.00013698,2]
[395492934,1764697845371,-500.0,0.00013698,2]
[395492936,1764697845382,-500.0,0.00013698,2]
[395492938,1764697845391,-500.0,0.00013698,2]
[395492940,1764697845403,-500.0,0.00013698,2]
[395492942,1764697845412,-500.0,0.00013698,2]
[395492944,1764697845421,-500.0,0.00013698,2]
[395492946,1764697845431,-727.47,0.00013698,2]
[395492948,1764697845442,-1973.93,0.00013698,2]
[395492950,1764697845452,-500.0,0.00013698,2]
[395492952,1764697845462,-272.40878205,0.00013698,2]
[395492954,1764697845476,-227.59121795,0.00013698,2]
[395492956,1764697845485,-444.1881504,0.00013698,2]
[395492960,1764697845518,-55.8118496,0.00013698,2]
[395492962,1764697845528,-1149.16,0.00013698,2]
[395492964,1764697845538,-228.38079032,0.00013698,2]
[395493113,1764697847264,-271.61920968,0.00013698,2]
[395493115,1764697847273,-500.0,0.00013698,2]
[395493117,1764697847282,-52.1020677,0.00013698,2]
[395493121,1764697847314,-6905.43431152,0.00013561,2]
[395493123,1764697847323,-447.8979323,0.00013698,2]
[395493125,1764697847331,-500.0,0.00013698,2]
[395493127,1764697847341,-1875.67,0.00013698,2]
[395493129,1764697847356,-500.0,0.00013698,2]
[395493131,1764697847366,-731.3,0.00013698,2]
[395493133,1764697847375,-500.0,0.00013698,2]
[395493135,1764697847385,-151.0,0.00013698,2]
[395493137,1764697847395,-500.0,0.00013698,2]
[395493139,1764697847405,-151.0,0.00013698,2]
[395493141,1764697847414,-151.0,0.00013698,2]
[395493143,1764697847423,-646.65549457,0.00013698,2]
[395493145,1764697847434,-151.0,0.00013698,2]
[395493147,1764697847445,-850.0,0.00013698,2]
[395493149,1764697847454,-151.0,0.00013698,2]
[395493151,1764697847463,-500.0,0.00013698,2]
[395493153,1764697847472,-151.0,0.00013698,2]
[395493155,1764697847481,-630.88,0.00013698,2]
[395493157,1764697847490,-151.0,0.00013698,2]
[395493159,1764697847499,-1165.31,0.00013698,2]
[395493161,1764697847508,-500.0,0.00013698,2]
[395493163,1764697847518,-99.85226165,0.00013698,2]
[395505784,1764698620313,5000.0,0.0001125,2]
[395505789,1764698652297,586.67810884,0.00010999,2]
[395505848,1764698702707,250.0,0.0002,30]
[395505895,1764698737287,550.73863859,0.00010999,2]
[395505904,1764698759837,550.73863859,0.00010999,2]
[395505905,1764698782144,550.73863859,0.00010999,2]
[395505906,1764698803872,550.73863859,0.00010999,2]
[395505907,1764698833301,586.67810884,0.00010999,2]
[395506149,1764699031938,-1462.47489552,0.00011028,2]
[395506150,1764699031947,-240.0,0.00011028,2]
[395506151,1764699031956,-272.27584763,0.00011063,2]
[395506152,1764699031966,-252.91,0.00011099,2]
[395506153,1764699031975,-1200.0,0.0001125,2]
[395506154,1764699031984,-165.80021089,0.00011251,2]
[395506155,1764699031993,-298.44037961,0.00011251,2]
[395506156,1764699032002,-530.56067486,0.00011251,2]
[395506157,1764699032010,-467.67363016,0.00011251,2]
[395506158,1764699032019,-300.0,0.00011843,2]
[395506159,1764699032028,-300.0,0.00011843,2]
[395506160,1764699032037,-300.0,0.00011843,2]
[395506161,1764699032045,-280.95643052,0.00011844,2]
[395506162,1764699032054,-505.72157494,0.00011844,2]
[395506163,1764699032063,-899.06057768,0.00011844,2]
[395506164,1764699032071,-158.657749,0.00011844,2]
[395506165,1764699032080,-633.99636501,0.00011844,2]
[395506166,1764699032089,-169.1407011,0.00011968,2]
[395506167,1764699032098,-304.45326199,0.00011968,2]
[395506168,1764699032107,-222.64487959,0.00011968,2]
[395506169,1764699032116,-206.76552777,0.00012308,2]
[395506170,1764699032124,-300.0,0.00012463,2]
[395506171,1764699032135,-238.18283841,0.00012467,2]
[395506172,1764699032144,-428.72910914,0.00012467,2]
[395506173,1764699032153,-762.18508292,0.00012467,2]
[395506174,1764699032162,-671.84373339,0.00012467,2]
[395506175,1764699032171,-309.49853269,0.00012598,2]
[395506176,1764699032180,-557.09735884,0.00012598,2]
[395506177,1764699032189,-990.39530461,0.00012598,2]
[395506178,1764699032198,-174.77564199,0.00012598,2]
[395506179,1764699032206,-353.75427879,0.00012748,2]
[395506180,1764699032215,-223.48910892,0.00012772,2]
[395506181,1764699032224,-414.0,0.00012853,2]
[395506182,1764699032233,-736.78222995,0.00013,3]
[395506183,1764699032243,-321.2855002,0.00013063,2]
[395506184,1764699032251,-170.38720075,0.00013273,2]
[395506185,1764699032260,-500.39540582,0.00013273,2]
[395506186,1764699032269,-500.0,0.00013273,2]
[395506187,1764699032278,-500.66209254,0.00013273,2]
[395506188,1764699032287,-507.17795087,0.00013273,2]
[395506189,1764699032295,-493.12975389,0.00013273,2]
[395506190,1764699032314,-6.87024611,0.00013273,2]
[395506191,1764699032323,-500.0,0.00013273,2]
[395506192,1764699032331,-500.0,0.00013273,2]
[395506193,1764699032340,-516.09495146,0.00013273,2]
[395506194,1764699032349,-167.48109854,0.00013273,2]
[395506195,1764699032358,-500.0,0.00013273,2]
[395506196,1764699032367,-500.0,0.00013273,2]
[395506197,1764699032376,-500.0,0.00013273,2]
[395506198,1764699032385,-500.0,0.00013273,2]
[395506199,1764699032393,-500.0,0.00013273,2]
[395506200,1764699032402,-500.64354125,0.00013273,2]
[395506201,1764699032411,-182.80785739,0.00013273,2]
[395506202,1764699032420,-500.0,0.00013273,2]
[395506203,1764699032429,-500.0,0.00013273,2]
[395506204,1764699032437,-490.97546259,0.00013273,2]
[395506205,1764699032446,-500.0,0.00013273,2]
[395506206,1764699032455,-517.146766,0.00013273,2]
[395506207,1764699032464,-500.0,0.00013273,2]
[395506208,1764699032473,-500.0,0.00013273,2]
[395506209,1764699032482,-500.0,0.00013273,2]
[395506210,1764699032491,-2033.62293136,0.00013518,2]
[395506211,1764699032500,-317.0,0.00013533,2]
[395506212,1764699032509,-436.636,0.00013573,2]
[395506213,1764699032518,-590.13,0.00013579,2]
[395506214,1764699032527,-1000.0,0.0001358,2]
[395506215,1764699032536,-1000.0,0.0001358,2]
[395506216,1764699032544,-1000.0,0.0001358,2]
[395506217,1764699032553,-224.20643302,0.0001358,2]
[395506218,1764699032562,-201.93286099,0.0001358,2]
[395506219,1764699032571,-500.0,0.0001358,2]
[395506220,1764699032580,-494.62755413,0.0001358,2]
[395506221,1764699032589,-500.0,0.0001358,2]
[395506222,1764699032597,-500.0,0.0001358,2]
[395506223,1764699032606,-500.0,0.0001358,2]
[395506224,1764699032615,-369.11266938,0.0001358,2]
[395506228,1764699033510,1623.68922796,0.00010918,2]
[395506241,1764699037984,-78.78566756,0.00010918,2]
[395506242,1764699037995,-130.88733062,0.0001358,2]
[395506243,1764699038005,-130.66032665,0.0001358,2]
[395506244,1764699038040,-43.95886475,0.0001358,2]
[395506245,1764699038050,-500.0,0.0001358,2]
[395506246,1764699038059,-500.0,0.0001358,2]
[395506247,1764699038069,-500.0,0.0001358,2]
[395506248,1764699038078,-500.0,0.0001358,2]
[395506249,1764699038087,-500.0,0.0001358,2]
[395506250,1764699038096,-500.0,0.0001358,2]
[395506251,1764699038105,-500.0,0.0001358,2]
[395506252,1764699038115,-500.0,0.0001358,2]
[395506253,1764699038124,-500.0,0.0001358,2]
[395506254,1764699038133,-73.10441727,0.0001358,2]
[395506255,1764699038149,-426.89558273,0.0001358,2]
[395506256,1764699038159,-500.0,0.0001358,2]
[395506257,1764699038168,-500.0,0.0001358,2]
[395506258,1764699038178,-500.0,0.0001358,2]
[395506260,1764699038187,-500.0,0.0001358,2]
[395506261,1764699038197,-500.0,0.0001358,2]
[395506262,1764699038210,-500.0,0.0001358,2]
[395506263,1764699038219,-500.0,0.0001358,2]
[395506264,1764699038229,-6112.2072957,0.00013671,2]
[395506265,1764699038239,-300.0,0.00013673,2]
[395506266,1764699038249,-3836.25288288,0.00013679,2]
[395506267,1764699038259,-1807.46826836,0.00013695,2]
[395506272,1764699040285,-226.154663,0.00013695,2]
[395506273,1764699040294,-500.0,0.00013697,2]
[395506274,1764699040304,-512.51135297,0.00013697,2]
[395506275,1764699040312,-454.98035902,0.00013697,2]
[395506276,1764699040321,-500.0,0.00013697,2]
[395506277,1764699040331,-1460.5083991,0.00013698,2]
[395506278,1764699040340,-500.0,0.00013698,2]
[395506279,1764699040349,-500.0,0.00013698,2]
[395506280,1764699040358,-500.0,0.00013698,2]
[395506281,1764699040368,-500.0,0.00013698,2]
[395506282,1764699040377,-500.0,0.00013698,2]
[395506284,1764699040386,-500.0,0.00013698,2]
[395506285,1764699040396,-500.0,0.00013698,2]
[395506286,1764699040405,-500.0,0.00013698,2]
[395506287,1764699040414,-228.55851912,0.00013698,2]
[395506288,1764699040422,-500.0,0.00013698,2]
[395506289,1764699040429,-500.0,0.00013698,2]
[395506290,1764699040437,-500.0,0.00013698,2]
[395506291,1764699040444,-500.0,0.00013698,2]
[395506292,1764699040452,-500.0,0.00013698,2]
[395506293,1764699040459,-500.0,0.00013698,2]
[395506294,1764699040468,-500.0,0.00013698,2]
[395506295,1764699040477,-500.0,0.00013698,2]
[395506296,1764699040486,-569.43,0.00013698,2]
[395506297,1764699040495,-500.0,0.00013698,2]
[395506298,1764699040504,-500.0,0.00013698,2]
[395506299,1764699040513,-500.0,0.00013698,2]
[395506300,1764699040522,-389.96743993,0.00013698,2]
[395506301,1764699040536,-110.84694086,0.00013698,2]
[395506302,1764699040546,-500.0,0.00013698,2]
[395506303,1764699040555,-500.0,0.00013698,2]
[395506304,1764699040564,-500.0,0.00013698,2]
[395506305,1764699040573,-500.0,0.00013698,2]
[395506306,1764699040581,-500.0,0.00013698,2]
[395506307,1764699040590,-500.0,0.00013698,2]
[395506308,1764699040599,-500.0,0.00013698,2]
[395506309,1764699040608,-901.99,0.00013698,2]
[395506310,1764699040617,-500.0,0.00013698,2]
[395506311,1764699040626,-636.19,0.00013698,2]
[395506312,1764699040635,-500.0,0.00013698,2]
[395506313,1764699040644,-500.0,0.00013698,2]
[395506314,1764699040653,-500.0,0.00013698,2]
[395506315,1764699040662,-1167.84,0.00013698,2]
[395506316,1764699040671,-504.05283817,0.00013698,2]
[395506317,1764699040680,-621.6,0.00013698,2]
[395506318,1764699040688,-500.0,0.00013698,2]
[395506319,1764699040698,-500.0,0.00013698,2]
[395506320,1764699040706,-608.19,0.00013698,2]
[395506321,1764699040715,-500.0,0.00013698,2]
[395506322,1764699040724,-500.0,0.00013698,2]
[395506323,1764699040735,-500.0,0.00013698,2]
[395506324,1764699040745,-500.0,0.00013698,2]
[395506325,1764699040753,-500.0,0.00013698,2]
[395506326,1764699040762,-1243.08,0.00013698,2]
[395506327,1764699040772,-500.0,0.00013698,2]
[395506328,1764699040782,-500.0,0.00013698,2]
[395506329,1764699040791,-516.61,0.00013698,2]
[395506330,1764699040800,-500.0,0.00013698,2]
[395506331,1764699040811,-500.0,0.00013698,2]
[395506332,1764699040821,-169.874861,0.00013698,2]
[395506333,1764699040831,-500.0,0.00013698,2]
[395506334,1764699040840,-500.0,0.00013698,2]
[395506335,1764699040850,-673.42,0.00013698,2]
[395506336,1764699040860,-347.84815246,0.00013698,2]
[395506337,1764699040870,-502.89177714,0.00013698,2]
[395506338,1764699040880,-500.0,0.00013698,2]
[395506339,1764699040890,-593.94,0.00013698,2]
[395506340,1764699040899,-996.26,0.00013698,2]
[395506341,1764699040908,-598.61,0.00013698,2]
[395506342,1764699040917,-2872.185808,0.00013698,2]
[395506343,1764699040926,-500.0,0.00013698,2]
[395506344,1764699040935,-500.0,0.00013698,2]
[395506345,1764699040944,-500.0,0.00013698,2]
[395506346,1764699040952,-500.0,0.00013698,2]
[395506347,1764699040961,-500.0,0.00013698,2]
[395506348,1764699040970,-500.0,0.00013698,2]
[395506349,1764699040979,-587.83,0.00013698,2]
[395506350,1764699040988,-500.0,0.00013698,2]
[395506351,1764699040998,-500.0,0.00013698,2]
[395506352,1764699041007,-500.0,0.00013698,2]
[395506353,1764699041016,-1158.68,0.00013698,2]
[395506354,1764699041026,-1238.48,0.00013698,2]
[395506355,1764699041035,-500.0,0.00013698,2]
[395506356,1764699041044,-500.0,0.00013698,2]
[395506357,1764699041053,-500.0,0.00013698,2]
[395506358,1764699041063,-500.0,0.00013698,2]
[395506359,1764699041072,-500.0,0.00013698,2]
[395506360,1764699041081,-500.0,0.00013698,2]
[395506361,1764699041090,-500.0,0.00013698,2]
[395506362,1764699041100,-545.85,0.00013698,2]
[395506363,1764699041110,-500.0,0.00013698,2]
[395506364,1764699041119,-500.0,0.00013698,2]
[395506365,1764699041128,-500.0,0.00013698,2]
[395506366,1764699041137,-500.0,0.00013698,2]
[395506367,1764699041147,-500.0,0.00013698,2]
[395506368,1764699041157,-500.0,0.00013698,2]
[395506369,1764699041166,-500.0,0.00013698,2]
[395506370,1764699041176,-500.0,0.00013698,2]
[395506371,1764699041191,-500.0,0.00013698,2]
[395506372,1764699041205,-500.0,0.00013698,2]
[395506373,1764699041420,-500.0,0.00013698,2]
[395506374,1764699041430,-500.0,0.00013698,2]
[395506375,1764699041440,-500.0,0.00013698,2]
[395506376,1764699041449,-500.0,0.00013698,2]
[395506377,1764699041458,-500.0,0.00013698,2]
[395506378,1764699041467,-500.0,0.00013698,2]
[395506379,1764699041476,-503.24816535,0.00013698,2]
[395506380,1764699041486,-500.0,0.00013698,2]
[395506381,1764699041496,-500.0,0.00013698,2]
[395506382,1764699041505,-500.0,0.00013698,2]
[395506383,1764699041515,-500.0,0.00013698,2]
[395506384,1764699041524,-500.0,0.00013698,2]